Workbook

Sheet Instructions

Sheet Meta data_sheet
A1: Ambient Monitoring Station | B1: Details | D1: Ambient Monitoring Results | E1: Details
A2: Location | B2: Werris Creek | D2: PM2.5 monitoring start (dd/mm/yyyy hh:mm) | E2: 2019-06-01
A3: Easting | B3: =VLOOKUP($B$2,'Meta data_lookup'!$A$2:$D$5,2,FALSE) -> 276783 | D3: PM2.5 monitoring end | E3: 2019-07-01
A4: Northing | B4: =VLOOKUP($B$2,'Meta data_lookup'!$A$2:$D$5,3,FALSE) -> 6528734 | D4: PM2.5 monitoring period (h) | E4: =(E3-E2)*24 -> 720
A5: Site elevation (m) | B5: =VLOOKUP($B$2,'Meta data_lookup'!$A$2:$D$5,4,FALSE) -> ND | D5: Number of valid PM2.5 results | E5: =COUNTIF('Raw data_sheet'!G2:G745,"Valid") -> 530
A6: Description of surrounding land use | B6: Agriculture/Mining | D6: Proportion of valid PM2.5 results (%) | E6: =E5/E4 -> 0.7361111111
A7: Typical sources impacting on the site | B7: Agriculture | D7: PM10 monitoring start (dd/mm/yyyy hh:mm) | E7: 2019-06-01
A8: Site compliance with AS/NZS 3580.1.1:2007 | B8: Yes | D8: PM10 monitoring end | E8: 2019-07-01
A9: PM2.5 method compliance with AS/NZS 3580.9.13:2013 | B9: Yes | D9: PM10 monitoring period (h) | E9: =(E8-E7)*24 -> 720
A10: PM2.5 instrument make | B10: Thermo Scientific | D10: Number of valid PM10 results | E10: =COUNTIF('Raw data_sheet'!J2:J745,"Valid") -> 549
A11: PM2.5 instrument model | B11: 1405DF | D11: Proportion of valid PM10 results (%) | E11: =E10/E9 -> 0.7625
A12: PM2.5 instrument intake height (m) | B12: 3.5
A13: PM10 method compliance with AS 3580.9.8-2008 | B13: No*
A14: PM10 instrument make | B14: Thermo Scientific
A15: PM10 instrument model | B15: 1405DF
A16: PM10 instrument intake height (m) | B16: 3.5
A17: *The 1405DF TEOM used at this site measures PM10 indirectly rather than directly. The unit does however meet the intent of AS 3580.9.8-2008, and this method has been accredited by the USEPA. It is considered scientifically robust and is used extensively throughout NSW with EPA's knowledge and informal acceptance.

Sheet Meta data_lookup
A1: Location | B1: Easting | C1: Northing | D1: Site elevation (m)
A2: Maules Creek | B2: 225302 | C2: 6623037 | D2: ND
A3: Breeza | B3: 237993 | C3: 6542606 | D3: ND
A4: Will-gai | B4: 231804 | C4: 6596392 | D4: ND
A5: Werris Creek | B5: 276783 | C5: 6528734 | D5: ND

Sheet Raw data_sheet
A1: Year | B1: Month | C1: Day | D1: Hour | E1: Date and time | F1: PM2.5_hourly | G1: PM2.5_Data_Status | H1: PM2.5_24hr_rolling_average | I1: PM10_hourly | J1: PM10_Data_Status | K1: PM10_24hr_rolling_average | L1: Cause of data invalidity, if applicable | M1: Detailed comments | N1: PM2.5_hourly_valid_plot | O1: PM2.5_24hr_rolling_ave_valid_plot | P1: PM10_hourly_valid_plot | Q1: PM10_24hr_rolling_ave_valid_plot | R1: PM10_hourly_valid_plot_series | S1: PM10_24hr_rolling_average_valid_plot_series | T1: PM2.5_hourly_valid_plot_series | U1: PM2.5_24hr_rolling_average_valid_plot_series
A2: 2019 | B2: 6 | C2: 1 | D2: 0 | E2: =DATE(A2,B2,C2)+TIME(D2,0,0) -> 43617 | F2: 3.6 | G2: Valid | H2: 0.8 | I2: 19.9 | J2: Valid | K2: 9.5 | N2: =IF(G2="Valid", F2, NA()) -> 3.6 | O2: =IF(G2="Valid", H2, NA()) -> 0.8 | P2: =IF(J2="Valid", I2, NA()) -> 19.9 | Q2: =IF(J2="Valid", K2, NA()) -> 9.5 | R2: 19.9 | S2: 9.5 | T2: 3.6 | U2: 0.8
A3: =A2 -> 2019 | B3: =B2 -> 6 | C3: =C2 -> 1 | D3: =IF(D2=23,0,D2+1) -> 1 | E3: =E2+0.0416666666666666 -> 43617.04167 | F3: 8.3 | G3: Valid | H3: 1.1 | I3: 37.7 | J3: Valid | K3: 10.9 | N3: 8.3 | O3: 1.1 | P3: 37.7 | Q3: 10.9 | R3: 37.7 | S3: 10.9 | T3: 8.3 | U3: 1.1
A4: =A3 -> 2019 | B4: =B3 -> 6 | C4: 1 | D4: =IF(D3=23,0,D3+1) -> 2 | E4: =E3+0.0416666666666666 -> 43617.08333 | F4: =NA() ->  | G4: Invalid | H4: =NA() ->  | I4: 9.6 | J4: Valid | K4: 11.1 | L4: Calibration Error | M4: value outside range | P4: 9.6 | Q4: 11.1 | R4: 9.6 | S4: 11.1
A5: 2019 | B5: 6 | C5: 1 | D5: 3 | E5: 43617.125 | F5: 8.7 | G5: Valid | H5: 1.4 | I5: 16.7 | J5: Valid | K5: 11.7 | N5: 8.7 | O5: 1.4 | P5: 16.7 | Q5: 11.7 | R5: 16.7 | S5: 11.7 | T5: 8.7 | U5: 1.4
A6: 2019 | B6: 6 | C6: 1 | D6: 4 | E6: 43617.16667 | F6: 4.4 | G6: Valid | H6: 1.7 | I6: 10.9 | J6: Valid | K6: 12.1 | N6: 4.4 | O6: 1.7 | P6: 10.9 | Q6: 12.1 | R6: 10.9 | S6: 12.1 | T6: 4.4 | U6: 1.7
A7: 2019 | B7: 6 | C7: 1 | D7: 5 | E7: 43617.20833 | F7: =NA() ->  | G7: Invalid | H7: =NA() ->  | I7: -0.1 | J7: Valid | K7: 11.9 | L7: Calibration Error | M7: value outside range | P7: -0.1 | Q7: 11.9 | R7: -0.1 | S7: 11.9
A8: 2019 | B8: 6 | C8: 1 | D8: 6 | E8: 43617.25 | F8: 2.9 | G8: Valid | H8: 1.3 | I8: 12.6 | J8: Valid | K8: 12.2 | N8: 2.9 | O8: 1.3 | P8: 12.6 | Q8: 12.2 | R8: 12.6 | S8: 12.2 | T8: 2.9 | U8: 1.3
A9: 2019 | B9: 6 | C9: 1 | D9: 7 | E9: 43617.29167 | F9: 0.3 | G9: Valid | H9: 1.4 | I9: 6 | J9: Valid | K9: 12.4 | N9: 0.3 | O9: 1.4 | P9: 6 | Q9: 12.4 | R9: 6 | S9: 12.4 | T9: 0.3 | U9: 1.4
A10: 2019 | B10: 6 | C10: 1 | D10: 8 | E10: 43617.33333 | F10: 0.6 | G10: Valid | H10: 1.2 | I10: 4.7 | J10: Valid | K10: 12.1 | N10: 0.6 | O10: 1.2 | P10: 4.7 | Q10: 12.1 | R10: 4.7 | S10: 12.1 | T10: 0.6 | U10: 1.2
A11: 2019 | B11: 6 | C11: 1 | D11: 9 | E11: 43617.375 | F11: =NA() ->  | G11: Invalid | H11: =NA() ->  | I11: -0.9 | J11: Valid | K11: 11.9 | L11: Calibration Error | M11: value outside range | P11: -0.9 | Q11: 11.9 | R11: -0.9 | S11: 11.9
A12: 2019 | B12: 6 | C12: 1 | D12: 10 | E12: 43617.41667 | F12: 4.5 | G12: Valid | H12: 0.1 | I12: 13.1 | J12: Valid | K12: 11.6 | N12: 4.5 | O12: 0.1 | P12: 13.1 | Q12: 11.6 | R12: 13.1 | S12: 11.6 | T12: 4.5 | U12: 0.1
A13: 2019 | B13: 6 | C13: 1 | D13: 11 | E13: 43617.45833 | F13: 7.7 | G13: Valid | H13: 0.3 | I13: 20.4 | J13: Valid | K13: 12.3 | N13: 7.7 | O13: 0.3 | P13: 20.4 | Q13: 12.3 | R13: 20.4 | S13: 12.3 | T13: 7.7 | U13: 0.3
A14: 2019 | B14: 6 | C14: 1 | D14: 12 | E14: 43617.5 | F14: 5.1 | G14: Valid | H14: 0.3 | I14: 13 | J14: Valid | K14: 12.5 | N14: 5.1 | O14: 0.3 | P14: 13 | Q14: 12.5 | R14: 13 | S14: 12.5 | T14: 5.1 | U14: 0.3
A15: 2019 | B15: 6 | C15: 1 | D15: 13 | E15: 43617.54167 | F15: 3.8 | G15: Valid | H15: 0.4 | I15: 9.4 | J15: Valid | K15: 12.3 | N15: 3.8 | O15: 0.4 | P15: 9.4 | Q15: 12.3 | R15: 9.4 | S15: 12.3 | T15: 3.8 | U15: 0.4
A16: 2019 | B16: 6 | C16: 1 | D16: 14 | E16: 43617.58333 | F16: 7 | G16: Valid | H16: 0.9 | I16: 13.5 | J16: Valid | K16: 12.7 | N16: 7 | O16: 0.9 | P16: 13.5 | Q16: 12.7 | R16: 13.5 | S16: 12.7 | T16: 7 | U16: 0.9
A17: 2019 | B17: 6 | C17: 1 | D17: 15 | E17: 43617.625 | F17: 7.2 | G17: Valid | H17: 1.1 | I17: 14.2 | J17: Valid | K17: 12.8 | N17: 7.2 | O17: 1.1 | P17: 14.2 | Q17: 12.8 | R17: 14.2 | S17: 12.8 | T17: 7.2 | U17: 1.1
A18: 2019 | B18: 6 | C18: 1 | D18: 16 | E18: 43617.66667 | F18: 4.9 | G18: Valid | H18: 1.2 | I18: 10.4 | J18: Valid | K18: 12.8 | N18: 4.9 | O18: 1.2 | P18: 10.4 | Q18: 12.8 | R18: 10.4 | S18: 12.8 | T18: 4.9 | U18: 1.2
A19: 2019 | B19: 6 | C19: 1 | D19: 17 | E19: 43617.70833 | F19: 10.5 | G19: Valid | H19: 1.5 | I19: 15 | J19: Valid | K19: 12.9 | N19: 10.5 | O19: 1.5 | P19: 15 | Q19: 12.9 | R19: 15 | S19: 12.9 | T19: 10.5 | U19: 1.5
A20: 2019 | B20: 6 | C20: 1 | D20: 18 | E20: 43617.75 | F20: 5.3 | G20: Valid | H20: 1.5 | I20: 8.4 | J20: Valid | K20: 12.3 | N20: 5.3 | O20: 1.5 | P20: 8.4 | Q20: 12.3 | R20: 8.4 | S20: 12.3 | T20: 5.3 | U20: 1.5
A21: 2019 | B21: 6 | C21: 1 | D21: 19 | E21: 43617.79167 | F21: 1.3 | G21: Valid | H21: 1.5 | I21: 5.1 | J21: Valid | K21: 11.9 | N21: 1.3 | O21: 1.5 | P21: 5.1 | Q21: 11.9 | R21: 5.1 | S21: 11.9 | T21: 1.3 | U21: 1.5
A22: 2019 | B22: 6 | C22: 1 | D22: 20 | E22: 43617.83333 | F22: -1.8 | G22: Valid | H22: 1.3 | I22: 2.8 | J22: Valid | K22: 11.6 | N22: -1.8 | O22: 1.3 | P22: 2.8 | Q22: 11.6 | R22: 2.8 | S22: 11.6 | T22: -1.8 | U22: 1.3
A23: 2019 | B23: 6 | C23: 1 | D23: 21 | E23: 43617.875 | F23: =NA() ->  | G23: Invalid | H23: =NA() ->  | I23: -1.6 | J23: Valid | K23: 11.2 | L23: Calibration Error | M23: value outside range | P23: -1.6 | Q23: 11.2 | R23: -1.6 | S23: 11.2
A24: 2019 | B24: 6 | C24: 1 | D24: 22 | E24: 43617.91667 | F24: =NA() ->  | G24: Invalid | H24: =NA() ->  | I24: -4 | J24: Valid | K24: 9.8 | L24: Calibration Error | M24: value outside range | P24: -4 | Q24: 9.8 | R24: -4 | S24: 9.8
A25: 2019 | B25: =B24 -> 6 | C25: =C24 -> 1 | D25: 23 | E25: 43617.95833 | F25: 0.7 | G25: Valid | H25: 1.8 | I25: 3.8 | J25: Valid | K25: 10.1 | N25: 0.7 | O25: 1.8 | P25: 3.8 | Q25: 10.1 | R25: 3.8 | S25: 10.1 | T25: 0.7 | U25: 1.8
A26: 2019 | B26: =B25 -> 6 | C26: =C2+1 -> 2 | D26: 0 | E26: 43618 | F26: 6.5 | G26: Valid | H26: 1.9 | I26: 9.4 | J26: Valid | K26: 9.6 | N26: 6.5 | O26: 1.9 | P26: 9.4 | Q26: 9.6 | R26: 9.4 | S26: 9.6 | T26: 6.5 | U26: 1.9
A27: 2019 | B27: =B26 -> 6 | C27: =C3+1 -> 2 | D27: 1 | E27: 43618.04167 | F27: 2.9 | G27: Valid | H27: 1.7 | I27: 5.3 | J27: Valid | K27: 8.2 | N27: 2.9 | O27: 1.7 | P27: 5.3 | Q27: 8.2 | R27: 5.3 | S27: 8.2 | T27: 2.9 | U27: 1.7
A28: 2019 | B28: 6 | C28: 2 | D28: 2 | E28: 43618.08333 | F28: 11.4 | G28: Valid | H28: 2.4 | I28: 12.5 | J28: Valid | K28: 8.3 | N28: 11.4 | O28: 2.4 | P28: 12.5 | Q28: 8.3 | R28: 12.5 | S28: 8.3 | T28: 11.4 | U28: 2.4
A29: 2019 | B29: 6 | C29: 2 | D29: 3 | E29: 43618.125 | F29: -1.6 | G29: Valid | H29: 1.9 | I29: 1.2 | J29: Valid | K29: 7.7 | N29: -1.6 | O29: 1.9 | P29: 1.2 | Q29: 7.7 | R29: 1.2 | S29: 7.7 | T29: -1.6 | U29: 1.9
A30: 2019 | B30: 6 | C30: 2 | D30: 4 | E30: 43618.16667 | F30: =NA() ->  | G30: Invalid | H30: =NA() ->  | I30: -0.8 | J30: Valid | K30: 7.1 | L30: Calibration Error | M30: value outside range | P30: -0.8 | Q30: 7.1 | R30: -0.8 | S30: 7.1
A31: 2019 | B31: 6 | C31: 2 | D31: 5 | E31: 43618.20833 | F31: =NA() ->  | G31: Invalid | H31: =NA() ->  | I31: -5.8 | J31: Valid | K31: 6.9 | L31: Calibration Error | M31: value outside range | P31: -5.8 | Q31: 6.9 | R31: -5.8 | S31: 6.9
A32: 2019 | B32: 6 | C32: 2 | D32: 6 | E32: 43618.25 | F32: 3.4 | G32: Valid | H32: 1.5 | I32: 4.9 | J32: Valid | K32: 6.5 | N32: 3.4 | O32: 1.5 | P32: 4.9 | Q32: 6.5 | R32: 4.9 | S32: 6.5 | T32: 3.4 | U32: 1.5
A33: 2019 | B33: 6 | C33: 2 | D33: 7 | E33: 43618.29167 | F33: =NA() ->  | G33: Invalid | H33: =NA() ->  | I33: -2.2 | J33: Valid | K33: 6.2 | L33: Calibration Error | M33: value outside range | P33: -2.2 | Q33: 6.2 | R33: -2.2 | S33: 6.2
A34: 2019 | B34: 6 | C34: 2 | D34: 8 | E34: 43618.33333 | F34: -1.3 | G34: Valid | H34: 1.2 | I34: 1.5 | J34: Valid | K34: 6.1 | N34: -1.3 | O34: 1.2 | P34: 1.5 | Q34: 6.1 | R34: 1.5 | S34: 6.1 | T34: -1.3 | U34: 1.2
A35: 2019 | B35: 6 | C35: 2 | D35: 9 | E35: 43618.375 | F35: -0.4 | G35: Valid | H35: 1.9 | I35: 3.2 | J35: Valid | K35: 6.3 | N35: -0.4 | O35: 1.9 | P35: 3.2 | Q35: 6.3 | R35: 3.2 | S35: 6.3 | T35: -0.4 | U35: 1.9
A36: 2019 | B36: 6 | C36: 2 | D36: 10 | E36: 43618.41667 | F36: 1.5 | G36: Valid | H36: 1.8 | I36: 4.8 | J36: Valid | K36: 6 | N36: 1.5 | O36: 1.8 | P36: 4.8 | Q36: 6 | R36: 4.8 | S36: 6 | T36: 1.5 | U36: 1.8
A37: 2019 | B37: 6 | C37: 2 | D37: 11 | E37: 43618.45833 | F37: -1.5 | G37: Valid | H37: 1.4 | I37: 1 | J37: Valid | K37: 5.2 | N37: -1.5 | O37: 1.4 | P37: 1 | Q37: 5.2 | R37: 1 | S37: 5.2 | T37: -1.5 | U37: 1.4
A38: 2019 | B38: 6 | C38: 2 | D38: 12 | E38: 43618.5 | F38: -0.1 | G38: Valid | H38: 1.2 | I38: 5.6 | J38: Valid | K38: 4.9 | N38: -0.1 | O38: 1.2 | P38: 5.6 | Q38: 4.9 | R38: 5.6 | S38: 4.9 | T38: -0.1 | U38: 1.2
A39: 2019 | B39: 6 | C39: 2 | D39: 13 | E39: 43618.54167 | F39: 3.1 | G39: Valid | H39: 1.2 | I39: 7.1 | J39: Valid | K39: 4.8 | N39: 3.1 | O39: 1.2 | P39: 7.1 | Q39: 4.8 | R39: 7.1 | S39: 4.8 | T39: 3.1 | U39: 1.2
A40: 2019 | B40: 6 | C40: 2 | D40: 14 | E40: 43618.58333 | F40: 2.3 | G40: Valid | H40: 1 | I40: 5.2 | J40: Valid | K40: 4.5 | N40: 2.3 | O40: 1 | P40: 5.2 | Q40: 4.5 | R40: 5.2 | S40: 4.5 | T40: 2.3 | U40: 1
A41: 2019 | B41: 6 | C41: 2 | D41: 15 | E41: 43618.625 | F41: 4.6 | G41: Valid | H41: 0.9 | I41: 8.2 | J41: Valid | K41: 4.2 | N41: 4.6 | O41: 0.9 | P41: 8.2 | Q41: 4.2 | R41: 8.2 | S41: 4.2 | T41: 4.6 | U41: 0.9
A42: 2019 | B42: 6 | C42: 2 | D42: 16 | E42: 43618.66667 | F42: 5.7 | G42: Valid | H42: 0.9 | I42: 10.5 | J42: Valid | K42: 4.3 | N42: 5.7 | O42: 0.9 | P42: 10.5 | Q42: 4.3 | R42: 10.5 | S42: 4.3 | T42: 5.7 | U42: 0.9
A43: 2019 | B43: 6 | C43: 2 | D43: 17 | E43: 43618.70833 | F43: 6.5 | G43: Valid | H43: 0.8 | I43: 14.4 | J43: Valid | K43: 4.2 | N43: 6.5 | O43: 0.8 | P43: 14.4 | Q43: 4.2 | R43: 14.4 | S43: 4.2 | T43: 6.5 | U43: 0.8
A44: 2019 | B44: 6 | C44: 2 | D44: 18 | E44: 43618.75 | F44: 10.9 | G44: Valid | H44: 1 | I44: 17.8 | J44: Valid | K44: 4.5 | N44: 10.9 | O44: 1 | P44: 17.8 | Q44: 4.5 | R44: 17.8 | S44: 4.5 | T44: 10.9 | U44: 1
A45: 2019 | B45: 6 | C45: 2 | D45: 19 | E45: 43618.79167 | F45: -0.6 | G45: Valid | H45: 0.9 | I45: 2.6 | J45: Valid | K45: 4.4 | N45: -0.6 | O45: 0.9 | P45: 2.6 | Q45: 4.4 | R45: 2.6 | S45: 4.4 | T45: -0.6 | U45: 0.9
A46: 2019 | B46: 6 | C46: 2 | D46: 20 | E46: 43618.83333 | F46: 1.4 | G46: Valid | H46: 1 | I46: 3.8 | J46: Valid | K46: 4.5 | N46: 1.4 | O46: 1 | P46: 3.8 | Q46: 4.5 | R46: 3.8 | S46: 4.5 | T46: 1.4 | U46: 1
A47: 2019 | B47: 6 | C47: 2 | D47: 21 | E47: 43618.875 | F47: =NA() ->  | G47: Invalid | H47: =NA() ->  | I47: -1.1 | J47: Valid | K47: 4.5 | L47: Calibration Error | M47: value outside range | P47: -1.1 | Q47: 4.5 | R47: -1.1 | S47: 4.5
A48: 2019 | B48: 6 | C48: 2 | D48: 22 | E48: 43618.91667 | F48: 3.6 | G48: Valid | H48: 1.6 | I48: 5.1 | J48: Valid | K48: 4.9 | N48: 3.6 | O48: 1.6 | P48: 5.1 | Q48: 4.9 | R48: 5.1 | S48: 4.9 | T48: 3.6 | U48: 1.6
A49: 2019 | B49: 6 | C49: 2 | D49: 23 | E49: 43618.95833 | F49: -1.3 | G49: Valid | H49: 1.5 | I49: 1.1 | J49: Valid | K49: 4.8 | N49: -1.3 | O49: 1.5 | P49: 1.1 | Q49: 4.8 | R49: 1.1 | S49: 4.8 | T49: -1.3 | U49: 1.5
A50: 2019 | B50: 6 | C50: 3 | D50: 0 | E50: 43619 | F50: 1 | G50: Valid | H50: 1.3 | I50: 3.6 | J50: Valid | K50: 4.5 | N50: 1 | O50: 1.3 | P50: 3.6 | Q50: 4.5 | R50: 3.6 | S50: 4.5 | T50: 1 | U50: 1.3
A51: 2019 | B51: 6 | C51: 3 | D51: 1 | E51: 43619.04167 | F51: -2 | G51: Valid | H51: 1.1 | I51: 0.2 | J51: Valid | K51: 4.3 | N51: -2 | O51: 1.1 | P51: 0.2 | Q51: 4.3 | R51: 0.2 | S51: 4.3 | T51: -2 | U51: 1.1
A52: 2019 | B52: 6 | C52: 3 | D52: 2 | E52: 43619.08333 | F52: =NA() ->  | G52: Invalid | H52: =NA() ->  | I52: -2.6 | J52: Valid | K52: 3.7 | L52: Calibration Error | M52: value outside range | P52: -2.6 | Q52: 3.7 | R52: -2.6 | S52: 3.7
A53: 2019 | B53: 6 | C53: 3 | D53: 3 | E53: 43619.125 | F53: =NA() ->  | G53: Invalid | H53: =NA() ->  | I53: -0.9 | J53: Valid | K53: 3.6 | L53: Calibration Error | M53: value outside range | P53: -0.9 | Q53: 3.6 | R53: -0.9 | S53: 3.6
A54: 2019 | B54: 6 | C54: 3 | D54: 4 | E54: 43619.16667 | F54: 6.2 | G54: Valid | H54: 0.7 | I54: 7.4 | J54: Valid | K54: 3.9 | N54: 6.2 | O54: 0.7 | P54: 7.4 | Q54: 3.9 | R54: 7.4 | S54: 3.9 | T54: 6.2 | U54: 0.7
A55: 2019 | B55: 6 | C55: 3 | D55: 5 | E55: 43619.20833 | F55: =NA() ->  | G55: Invalid | H55: =NA() ->  | I55: 0.2 | J55: Valid | K55: 4.2 | L55: Calibration Error | M55: value outside range | P55: 0.2 | Q55: 4.2 | R55: 0.2 | S55: 4.2
A56: 2019 | B56: 6 | C56: 3 | D56: 6 | E56: 43619.25 | F56: 1 | G56: Valid | H56: 0.9 | I56: 3.9 | J56: Valid | K56: 4.2 | N56: 1 | O56: 0.9 | P56: 3.9 | Q56: 4.2 | R56: 3.9 | S56: 4.2 | T56: 1 | U56: 0.9
A57: 2019 | B57: 6 | C57: 3 | D57: 7 | E57: 43619.29167 | F57: 7.1 | G57: Valid | H57: 1.3 | I57: 9.2 | J57: Valid | K57: 4.6 | N57: 7.1 | O57: 1.3 | P57: 9.2 | Q57: 4.6 | R57: 9.2 | S57: 4.6 | T57: 7.1 | U57: 1.3
A58: 2019 | B58: 6 | C58: 3 | D58: 8 | E58: 43619.33333 | F58: 1 | G58: Valid | H58: 1.4 | I58: 4.1 | J58: Valid | K58: 4.7 | N58: 1 | O58: 1.4 | P58: 4.1 | Q58: 4.7 | R58: 4.1 | S58: 4.7 | T58: 1 | U58: 1.4
A59: 2019 | B59: 6 | C59: 3 | D59: 9 | E59: 43619.375 | F59: 2.1 | G59: Valid | H59: 1.5 | I59: 5.7 | J59: Valid | K59: 4.8 | N59: 2.1 | O59: 1.5 | P59: 5.7 | Q59: 4.8 | R59: 5.7 | S59: 4.8 | T59: 2.1 | U59: 1.5
A60: 2019 | B60: 6 | C60: 3 | D60: 10 | E60: 43619.41667 | F60: 3.9 | G60: Valid | H60: 1.6 | I60: 7.1 | J60: Valid | K60: 5 | N60: 3.9 | O60: 1.6 | P60: 7.1 | Q60: 5 | R60: 7.1 | S60: 5 | T60: 3.9 | U60: 1.6
A61: 2019 | B61: 6 | C61: 3 | D61: 11 | E61: 43619.45833 | F61: 6.8 | G61: Valid | H61: 2 | I61: 9.5 | J61: Valid | K61: 5.3 | N61: 6.8 | O61: 2 | P61: 9.5 | Q61: 5.3 | R61: 9.5 | S61: 5.3 | T61: 6.8 | U61: 2
A62: 2019 | B62: 6 | C62: 3 | D62: 12 | E62: 43619.5 | F62: 5.5 | G62: Valid | H62: 2.2 | I62: 8.4 | J62: Valid | K62: 5.5 | N62: 5.5 | O62: 2.2 | P62: 8.4 | Q62: 5.5 | R62: 8.4 | S62: 5.5 | T62: 5.5 | U62: 2.2
A63: 2019 | B63: 6 | C63: 3 | D63: 13 | E63: 43619.54167 | F63: -1.9 | G63: Valid | H63: 2 | I63: 2.1 | J63: Valid | K63: 5.3 | N63: -1.9 | O63: 2 | P63: 2.1 | Q63: 5.3 | R63: 2.1 | S63: 5.3 | T63: -1.9 | U63: 2
A64: 2019 | B64: 6 | C64: 3 | D64: 14 | E64: 43619.58333 | F64: 7.2 | G64: Valid | H64: 2.2 | I64: 11.7 | J64: Valid | K64: 5.5 | N64: 7.2 | O64: 2.2 | P64: 11.7 | Q64: 5.5 | R64: 11.7 | S64: 5.5 | T64: 7.2 | U64: 2.2
A65: 2019 | B65: 6 | C65: 3 | D65: 15 | E65: 43619.625 | F65: 0.8 | G65: Valid | H65: 2.1 | I65: 3.9 | J65: Valid | K65: 5.3 | N65: 0.8 | O65: 2.1 | P65: 3.9 | Q65: 5.3 | R65: 3.9 | S65: 5.3 | T65: 0.8 | U65: 2.1
A66: 2019 | B66: 6 | C66: 3 | D66: 16 | E66: 43619.66667 | F66: 1.5 | G66: Valid | H66: 1.9 | I66: 4.6 | J66: Valid | K66: 5.1 | N66: =IF(G66="Valid", F66, NA()) -> 1.5 | O66: =IF(G66="Valid", H66, NA()) -> 1.9 | P66: =IF(J66="Valid", I66, NA()) -> 4.6 | Q66: =IF(J66="Valid", K66, NA()) -> 5.1 | R66: 4.6 | S66: 5.1 | T66: 1.5 | U66: 1.9
A67: 2019 | B67: 6 | C67: 3 | D67: 17 | E67: 43619.70833 | F67: =NA() ->  | G67: Invalid | H67: =NA() ->  | I67: -1.9 | J67: Valid | K67: 4.4 | L67: Calibration Error | M67: value outside range | P67: -1.9 | Q67: 4.4 | R67: -1.9 | S67: 4.4
A68: =A67 -> 2019 | B68: 6 | C68: 3 | D68: =IF(D67=23,0,D67+1) -> 18 | E68: =E67+0.0416666666666666 -> 43619.75 | F68: =NA() ->  | G68: Invalid | H68: =NA() ->  | I68: -0.6 | J68: Valid | K68: 3.6 | L68: Calibration Error | M68: value outside range | P68: -0.6 | Q68: 3.6 | R68: -0.6 | S68: 3.6
A69: 2019 | B69: 6 | C69: 3 | D69: 19 | E69: 43619.79167 | F69: 6.1 | G69: Valid | H69: 1 | I69: 8.1 | J69: Valid | K69: 3.8 | N69: 6.1 | O69: 1 | P69: 8.1 | Q69: 3.8 | R69: 8.1 | S69: 3.8 | T69: 6.1 | U69: 1
A70: 2019 | B70: 6 | C70: 3 | D70: 20 | E70: 43619.83333 | F70: 5.3 | G70: Valid | H70: 1.2 | I70: 7.6 | J70: Valid | K70: 4 | N70: 5.3 | O70: 1.2 | P70: 7.6 | Q70: 4 | R70: 7.6 | S70: 4 | T70: 5.3 | U70: 1.2
A71: 2019 | B71: 6 | C71: 3 | D71: 21 | E71: 43619.875 | F71: 4.1 | G71: Valid | H71: 1.5 | I71: 5.8 | J71: Valid | K71: 4.3 | N71: 4.1 | O71: 1.5 | P71: 5.8 | Q71: 4.3 | R71: 5.8 | S71: 4.3 | T71: 4.1 | U71: 1.5
A72: 2019 | B72: 6 | C72: 3 | D72: 22 | E72: 43619.91667 | F72: 3.9 | G72: Valid | H72: 1.5 | I72: 4.1 | J72: Valid | K72: 4.2 | N72: 3.9 | O72: 1.5 | P72: 4.1 | Q72: 4.2 | R72: 4.1 | S72: 4.2 | T72: 3.9 | U72: 1.5
A73: 2019 | B73: 6 | C73: 3 | D73: 23 | E73: 43619.95833 | F73: 1.5 | G73: Valid | H73: 1.6 | I73: 1.1 | J73: Valid | K73: 4.2 | N73: 1.5 | O73: 1.6 | P73: 1.1 | Q73: 4.2 | R73: 1.1 | S73: 4.2 | T73: 1.5 | U73: 1.6
A74: 2019 | B74: 6 | C74: 4 | D74: 0 | E74: 43620 | F74: =NA() ->  | G74: Invalid | H74: =NA() ->  | I74: 13.7 | J74: Valid | K74: 4.6 | L74: Calibration Error | M74: PM2.5 > PM10 | P74: 13.7 | Q74: 4.6 | R74: 13.7 | S74: 4.6
A75: 2019 | B75: 6 | C75: 4 | D75: 1 | E75: 43620.04167 | F75: =NA() ->  | G75: Invalid | H75: =NA() ->  | I75: -4.8 | J75: Valid | K75: 4.4 | L75: Calibration Error | M75: value outside range | P75: -4.8 | Q75: 4.4 | R75: -4.8 | S75: 4.4
A76: 2019 | B76: 6 | C76: 4 | D76: 2 | E76: 43620.08333 | F76: =NA() ->  | G76: Invalid | H76: =NA() ->  | I76: -2.8 | J76: Valid | K76: 4.4 | L76: Calibration Error | M76: value outside range | P76: -2.8 | Q76: 4.4 | R76: -2.8 | S76: 4.4
A77: 2019 | B77: 6 | C77: 4 | D77: 3 | E77: 43620.125 | F77: 0 | G77: Valid | H77: 2.2 | I77: 2.1 | J77: Valid | K77: 4.5 | N77: 0 | O77: 2.2 | P77: 2.1 | Q77: 4.5 | R77: 2.1 | S77: 4.5 | T77: 0 | U77: 2.2
A78: 2019 | B78: 6 | C78: 4 | D78: 4 | E78: 43620.16667 | F78: 3.1 | G78: Valid | H78: 2 | I78: 4.4 | J78: Valid | K78: 4.4 | N78: 3.1 | O78: 2 | P78: 4.4 | Q78: 4.4 | R78: 4.4 | S78: 4.4 | T78: 3.1 | U78: 2
A79: 2019 | B79: 6 | C79: 4 | D79: 5 | E79: 43620.20833 | F79: 1.5 | G79: Valid | H79: 2.2 | I79: 3.1 | J79: Valid | K79: 4.5 | N79: 1.5 | O79: 2.2 | P79: 3.1 | Q79: 4.5 | R79: 3.1 | S79: 4.5 | T79: 1.5 | U79: 2.2
A80: 2019 | B80: 6 | C80: 4 | D80: 6 | E80: 43620.25 | F80: 6.6 | G80: Valid | H80: 2.5 | I80: 7.6 | J80: Valid | K80: 4.7 | N80: 6.6 | O80: 2.5 | P80: 7.6 | Q80: 4.7 | R80: 7.6 | S80: 4.7 | T80: 6.6 | U80: 2.5
A81: 2019 | B81: 6 | C81: 4 | D81: 7 | E81: 43620.29167 | F81: 11.7 | G81: Valid | H81: 2.7 | I81: 12.1 | J81: Valid | K81: 4.8 | N81: 11.7 | O81: 2.7 | P81: 12.1 | Q81: 4.8 | R81: 12.1 | S81: 4.8 | T81: 11.7 | U81: 2.7
A82: 2019 | B82: 6 | C82: 4 | D82: 8 | E82: 43620.33333 | F82: 5.1 | G82: Valid | H82: 2.8 | I82: 6.5 | J82: Valid | K82: 4.9 | N82: 5.1 | O82: 2.8 | P82: 6.5 | Q82: 4.9 | R82: 6.5 | S82: 4.9 | T82: 5.1 | U82: 2.8
A83: 2019 | B83: 6 | C83: 4 | D83: 9 | E83: 43620.375 | F83: 14.7 | G83: Valid | H83: 3.4 | I83: 15.3 | J83: Valid | K83: 5.3 | N83: 14.7 | O83: 3.4 | P83: 15.3 | Q83: 5.3 | R83: 15.3 | S83: 5.3 | T83: 14.7 | U83: 3.4
A84: 2019 | B84: 6 | C84: 4 | D84: 10 | E84: 43620.41667 | F84: 7.2 | G84: Valid | H84: 3.5 | I84: 9.1 | J84: Valid | K84: 5.5 | N84: 7.2 | O84: 3.5 | P84: 9.1 | Q84: 5.5 | R84: 9.1 | S84: 5.5 | T84: 7.2 | U84: 3.5
A85: 2019 | B85: 6 | C85: 4 | D85: 11 | E85: 43620.45833 | F85: 22 | G85: Valid | H85: 4.2 | I85: 24.1 | J85: Valid | K85: 6.1 | N85: 22 | O85: 4.2 | P85: 24.1 | Q85: 6.1 | R85: 24.1 | S85: 6.1 | T85: 22 | U85: 4.2
A86: 2019 | B86: 6 | C86: 4 | D86: 12 | E86: 43620.5 | F86: 9 | G86: Valid | H86: 4.4 | I86: 11.2 | J86: Valid | K86: 6.3 | N86: 9 | O86: 4.4 | P86: 11.2 | Q86: 6.3 | R86: 11.2 | S86: 6.3 | T86: 9 | U86: 4.4
A87: 2019 | B87: 6 | C87: 4 | D87: 13 | E87: 43620.54167 | F87: 8.4 | G87: Valid | H87: 4.8 | I87: 11.4 | J87: Valid | K87: 6.6 | N87: 8.4 | O87: 4.8 | P87: 11.4 | Q87: 6.6 | R87: 11.4 | S87: 6.6 | T87: 8.4 | U87: 4.8
A88: 2019 | B88: 6 | C88: 4 | D88: 14 | E88: 43620.58333 | F88: 15.6 | G88: Valid | H88: 5.2 | I88: 18.5 | J88: Valid | K88: 7 | N88: 15.6 | O88: 5.2 | P88: 18.5 | Q88: 7 | R88: 18.5 | S88: 7 | T88: 15.6 | U88: 5.2
A89: 2019 | B89: 6 | C89: 4 | D89: 15 | E89: 43620.625 | F89: 2.2 | G89: Valid | H89: 5.2 | I89: 10 | J89: Valid | K89: 7.2 | N89: 2.2 | O89: 5.2 | P89: 10 | Q89: 7.2 | R89: 10 | S89: 7.2 | T89: 2.2 | U89: 5.2
A90: 2019 | B90: 6 | C90: 4 | D90: 16 | E90: 43620.66667 | F90: 3.8 | G90: Valid | H90: 5.3 | I90: 11.4 | J90: Valid | K90: 7.5 | N90: 3.8 | O90: 5.3 | P90: 11.4 | Q90: 7.5 | R90: 11.4 | S90: 7.5 | T90: 3.8 | U90: 5.3
A91: 2019 | B91: =B90 -> 6 | C91: =C67+1 -> 4 | D91: 17 | E91: 43620.70833 | F91: 9.4 | G91: Valid | H91: 5.9 | I91: 20.1 | J91: Valid | K91: 8.4 | N91: 9.4 | O91: 5.9 | P91: 20.1 | Q91: 8.4 | R91: 20.1 | S91: 8.4 | T91: 9.4 | U91: 5.9
A92: 2019 | B92: 6 | C92: 4 | D92: 18 | E92: 43620.75 | F92: 7.2 | G92: Valid | H92: 6.4 | I92: 12.1 | J92: Valid | K92: 8.9 | N92: 7.2 | O92: 6.4 | P92: 12.1 | Q92: 8.9 | R92: 12.1 | S92: 8.9 | T92: 7.2 | U92: 6.4
A93: 2019 | B93: 6 | C93: 4 | D93: 19 | E93: 43620.79167 | F93: 8.4 | G93: Valid | H93: 6.4 | I93: 12.3 | J93: Valid | K93: 9 | N93: 8.4 | O93: 6.4 | P93: 12.3 | Q93: 9 | R93: 12.3 | S93: 9 | T93: 8.4 | U93: 6.4
A94: 2019 | B94: 6 | C94: 4 | D94: 20 | E94: 43620.83333 | F94: 9.7 | G94: Valid | H94: 6.6 | I94: 13.7 | J94: Valid | K94: 9.3 | N94: 9.7 | O94: 6.6 | P94: 13.7 | Q94: 9.3 | R94: 13.7 | S94: 9.3 | T94: 9.7 | U94: 6.6
A95: 2019 | B95: 6 | C95: 4 | D95: 21 | E95: 43620.875 | F95: 9.7 | G95: Valid | H95: 6.8 | I95: 14.7 | J95: Valid | K95: 9.6 | N95: 9.7 | O95: 6.8 | P95: 14.7 | Q95: 9.6 | R95: 14.7 | S95: 9.6 | T95: 9.7 | U95: 6.8
A96: 2019 | B96: 6 | C96: 4 | D96: 22 | E96: 43620.91667 | F96: 12.9 | G96: Valid | H96: 7.2 | I96: 23 | J96: Valid | K96: 10.4 | N96: 12.9 | O96: 7.2 | P96: 23 | Q96: 10.4 | R96: 23 | S96: 10.4 | T96: 12.9 | U96: 7.2
A97: 2019 | B97: 6 | C97: 4 | D97: 23 | E97: 43620.95833 | F97: 12.2 | G97: Valid | H97: 7.6 | I97: 18.1 | J97: Valid | K97: 11 | N97: 12.2 | O97: 7.6 | P97: 18.1 | Q97: 11 | R97: 18.1 | S97: 11 | T97: 12.2 | U97: 7.6
A98: 2019 | B98: 6 | C98: 5 | D98: 0 | E98: 43621 | F98: 12.1 | G98: Valid | H98: 7.5 | I98: 16.7 | J98: Valid | K98: 11.2 | N98: 12.1 | O98: 7.5 | P98: 16.7 | Q98: 11.2 | R98: 16.7 | S98: 11.2 | T98: 12.1 | U98: 7.5
A99: 2019 | B99: 6 | C99: 5 | D99: 1 | E99: 43621.04167 | F99: 8.3 | G99: Valid | H99: 8.1 | I99: 11.2 | J99: Valid | K99: 11.8 | N99: 8.3 | O99: 8.1 | P99: 11.2 | Q99: 11.8 | R99: 11.2 | S99: 11.8 | T99: 8.3 | U99: 8.1
A100: 2019 | B100: 6 | C100: 5 | D100: 2 | E100: 43621.08333 | F100: 11.6 | G100: Valid | H100: 8.8 | I100: 14.1 | J100: Valid | K100: 12.5 | N100: 11.6 | O100: 8.8 | P100: 14.1 | Q100: 12.5 | R100: 14.1 | S100: 12.5 | T100: 11.6 | U100: 8.8
A101: 2019 | B101: 6 | C101: 5 | D101: 3 | E101: 43621.125 | F101: 13.7 | G101: Valid | H101: 9.4 | I101: 16.2 | J101: Valid | K101: 13.1 | N101: 13.7 | O101: 9.4 | P101: 16.2 | Q101: 13.1 | R101: 16.2 | S101: 13.1 | T101: 13.7 | U101: 9.4
A102: 2019 | B102: 6 | C102: 5 | D102: 4 | E102: 43621.16667 | F102: 13.8 | G102: Valid | H102: 9.8 | I102: 18.5 | J102: Valid | K102: 13.7 | N102: 13.8 | O102: 9.8 | P102: 18.5 | Q102: 13.7 | R102: 18.5 | S102: 13.7 | T102: 13.8 | U102: 9.8
A103: 2019 | B103: 6 | C103: 5 | D103: 5 | E103: 43621.20833 | F103: 12 | G103: Valid | H103: 10.3 | I103: 16.4 | J103: Valid | K103: 14.3 | N103: 12 | O103: 10.3 | P103: 16.4 | Q103: 14.3 | R103: 16.4 | S103: 14.3 | T103: 12 | U103: 10.3
A104: 2019 | B104: 6 | C104: 5 | D104: 6 | E104: 43621.25 | F104: 6.9 | G104: Valid | H104: 10.2 | I104: 10.4 | J104: Valid | K104: 14.3 | N104: 6.9 | O104: 10.2 | P104: 10.4 | Q104: 14.3 | R104: 10.4 | S104: 14.3 | T104: 6.9 | U104: 10.2
A105: 2019 | B105: 6 | C105: 5 | D105: 7 | E105: 43621.29167 | F105: 11.1 | G105: Valid | H105: 10.2 | I105: 13.9 | J105: Valid | K105: 14.4 | N105: 11.1 | O105: 10.2 | P105: 13.9 | Q105: 14.4 | R105: 13.9 | S105: 14.4 | T105: 11.1 | U105: 10.2
A106: 2019 | B106: 6 | C106: 5 | D106: 8 | E106: 43621.33333 | F106: 11.1 | G106: Valid | H106: 10.5 | I106: 15.5 | J106: Valid | K106: 14.8 | N106: 11.1 | O106: 10.5 | P106: 15.5 | Q106: 14.8 | R106: 15.5 | S106: 14.8 | T106: 11.1 | U106: 10.5
A107: 2019 | B107: 6 | C107: 5 | D107: 9 | E107: 43621.375 | F107: 12.8 | G107: Valid | H107: 10.5 | I107: 19.4 | J107: Valid | K107: 15 | N107: 12.8 | O107: 10.5 | P107: 19.4 | Q107: 15 | R107: 19.4 | S107: 15 | T107: 12.8 | U107: 10.5
A108: 2019 | B108: 6 | C108: 5 | D108: 10 | E108: 43621.41667 | F108: 9.5 | G108: Valid | H108: 10.6 | I108: 15.9 | J108: Valid | K108: 15.4 | N108: 9.5 | O108: 10.6 | P108: 15.9 | Q108: 15.4 | R108: 15.9 | S108: 15.4 | T108: 9.5 | U108: 10.6
A109: 2019 | B109: 6 | C109: 5 | D109: 11 | E109: 43621.45833 | F109: 10.7 | G109: Valid | H109: 10.1 | I109: 17.5 | J109: Valid | K109: 15.1 | N109: 10.7 | O109: 10.1 | P109: 17.5 | Q109: 15.1 | R109: 17.5 | S109: 15.1 | T109: 10.7 | U109: 10.1
A110: 2019 | B110: 6 | C110: 5 | D110: 12 | E110: 43621.5 | F110: 12.9 | G110: Valid | H110: 10.4 | I110: 18.3 | J110: Valid | K110: 15.5 | N110: 12.9 | O110: 10.4 | P110: 18.3 | Q110: 15.5 | R110: 18.3 | S110: 15.5 | T110: 12.9 | U110: 10.4
A111: 2019 | B111: 6 | C111: 5 | D111: 13 | E111: 43621.54167 | F111: 12.6 | G111: Valid | H111: 10.5 | I111: 18.7 | J111: Valid | K111: 15.8 | N111: 12.6 | O111: 10.5 | P111: 18.7 | Q111: 15.8 | R111: 18.7 | S111: 15.8 | T111: 12.6 | U111: 10.5
A112: 2019 | B112: 6 | C112: 5 | D112: 14 | E112: 43621.58333 | F112: 15.5 | G112: Valid | H112: 10.5 | I112: 19.8 | J112: Valid | K112: 15.9 | N112: 15.5 | O112: 10.5 | P112: 19.8 | Q112: 15.9 | R112: 19.8 | S112: 15.9 | T112: 15.5 | U112: 10.5
A113: 2019 | B113: 6 | C113: 5 | D113: 15 | E113: 43621.625 | F113: 12.9 | G113: Valid | H113: 11 | I113: 17.9 | J113: Valid | K113: 16.2 | N113: 12.9 | O113: 11 | P113: 17.9 | Q113: 16.2 | R113: 17.9 | S113: 16.2 | T113: 12.9 | U113: 11
A114: 2019 | B114: 6 | C114: 5 | D114: 16 | E114: 43621.66667 | F114: 4.9 | G114: Valid | H114: 11 | I114: 12.9 | J114: Valid | K114: 16.2 | N114: 4.9 | O114: 11 | P114: 12.9 | Q114: 16.2 | R114: 12.9 | S114: 16.2 | T114: 4.9 | U114: 11
A115: 2019 | B115: 6 | C115: 5 | D115: 17 | E115: 43621.70833 | F115: 5.3 | G115: Valid | H115: 10.7 | I115: 11.1 | J115: Valid | K115: 15.7 | N115: 5.3 | O115: 10.7 | P115: 11.1 | Q115: 15.7 | R115: 11.1 | S115: 15.7 | T115: 5.3 | U115: 10.7
A116: 2019 | B116: 6 | C116: 5 | D116: 18 | E116: 43621.75 | F116: 5 | G116: Valid | H116: 10.6 | I116: 9.9 | J116: Valid | K116: 15.6 | N116: 5 | O116: 10.6 | P116: 9.9 | Q116: 15.6 | R116: 9.9 | S116: 15.6 | T116: 5 | U116: 10.6
A117: 2019 | B117: 6 | C117: 5 | D117: 19 | E117: 43621.79167 | F117: 5.8 | G117: Valid | H117: 10.5 | I117: 11.2 | J117: Valid | K117: 15.5 | N117: 5.8 | O117: 10.5 | P117: 11.2 | Q117: 15.5 | R117: 11.2 | S117: 15.5 | T117: 5.8 | U117: 10.5
A118: 2019 | B118: 6 | C118: 5 | D118: 20 | E118: 43621.83333 | F118: 8.5 | G118: Valid | H118: 10.4 | I118: 13 | J118: Valid | K118: 15.5 | N118: 8.5 | O118: 10.4 | P118: 13 | Q118: 15.5 | R118: 13 | S118: 15.5 | T118: 8.5 | U118: 10.4
A119: 2019 | B119: 6 | C119: 5 | D119: 21 | E119: 43621.875 | F119: 13.3 | G119: Valid | H119: 10.5 | I119: 17.4 | J119: Valid | K119: 15.5 | N119: 13.3 | O119: 10.5 | P119: 17.4 | Q119: 15.5 | R119: 17.4 | S119: 15.5 | T119: 13.3 | U119: 10.5
A120: 2019 | B120: 6 | C120: 5 | D120: 22 | E120: 43621.91667 | F120: 13 | G120: Valid | H120: 10.5 | I120: 16.4 | J120: Valid | K120: 15.1 | N120: 13 | O120: 10.5 | P120: 16.4 | Q120: 15.1 | R120: 16.4 | S120: 15.1 | T120: 13 | U120: 10.5
A121: 2019 | B121: 6 | C121: 5 | D121: 23 | E121: 43621.95833 | F121: 8.2 | G121: Valid | H121: 10.3 | I121: 10.4 | J121: Valid | K121: 14.9 | N121: 8.2 | O121: 10.3 | P121: 10.4 | Q121: 14.9 | R121: 10.4 | S121: 14.9 | T121: 8.2 | U121: 10.3
A122: 2019 | B122: 6 | C122: 6 | D122: 0 | E122: 43622 | F122: 1.9 | G122: Valid | H122: 9.9 | I122: 5 | J122: Valid | K122: 14.4 | N122: 1.9 | O122: 9.9 | P122: 5 | Q122: 14.4 | R122: 5 | S122: 14.4 | T122: 1.9 | U122: 9.9
A123: 2019 | B123: 6 | C123: 6 | D123: 1 | E123: 43622.04167 | F123: 6.1 | G123: Valid | H123: 9.8 | I123: 8.2 | J123: Valid | K123: 14.2 | N123: 6.1 | O123: 9.8 | P123: 8.2 | Q123: 14.2 | R123: 8.2 | S123: 14.2 | T123: 6.1 | U123: 9.8
A124: 2019 | B124: 6 | C124: 6 | D124: 2 | E124: 43622.08333 | F124: 12.7 | G124: Valid | H124: 9.8 | I124: 15.1 | J124: Valid | K124: 14.3 | N124: 12.7 | O124: 9.8 | P124: 15.1 | Q124: 14.3 | R124: 15.1 | S124: 14.3 | T124: 12.7 | U124: 9.8
A125: 2019 | B125: 6 | C125: 6 | D125: 3 | E125: 43622.125 | F125: 8.2 | G125: Valid | H125: 9.6 | I125: 11.2 | J125: Valid | K125: 14.1 | N125: 8.2 | O125: 9.6 | P125: 11.2 | Q125: 14.1 | R125: 11.2 | S125: 14.1 | T125: 8.2 | U125: 9.6
A126: 2019 | B126: 6 | C126: 6 | D126: 4 | E126: 43622.16667 | F126: 2.1 | G126: Valid | H126: 9.1 | I126: 5.2 | J126: Valid | K126: 13.5 | N126: 2.1 | O126: 9.1 | P126: 5.2 | Q126: 13.5 | R126: 5.2 | S126: 13.5 | T126: 2.1 | U126: 9.1
A127: 2019 | B127: 6 | C127: 6 | D127: 5 | E127: 43622.20833 | F127: 5.7 | G127: Valid | H127: 8.8 | I127: 8 | J127: Valid | K127: 13.1 | N127: 5.7 | O127: 8.8 | P127: 8 | Q127: 13.1 | R127: 8 | S127: 13.1 | T127: 5.7 | U127: 8.8
A128: 2019 | B128: 6 | C128: 6 | D128: 6 | E128: 43622.25 | F128: =NA() ->  | G128: Invalid | H128: =NA() ->  | I128: 0.4 | J128: Valid | K128: 12.6 | L128: Calibration Error | M128: value outside range | P128: 0.4 | Q128: 12.6 | R128: 0.4 | S128: 12.6
A129: 2019 | B129: 6 | C129: 6 | D129: 7 | E129: 43622.29167 | F129: 3.3 | G129: Valid | H129: 8 | I129: 6.4 | J129: Valid | K129: 12.3 | N129: 3.3 | O129: 8 | P129: 6.4 | Q129: 12.3 | R129: 6.4 | S129: 12.3 | T129: 3.3 | U129: 8
A130: 2019 | B130: 6 | C130: 6 | D130: 8 | E130: 43622.33333 | F130: -0.9 | G130: Valid | H130: 7.6 | I130: 2 | J130: Valid | K130: 11.8 | N130: =IF(G130="Valid", F130, NA()) -> -0.9 | O130: =IF(G130="Valid", H130, NA()) -> 7.6 | P130: =IF(J130="Valid", I130, NA()) -> 2 | Q130: =IF(J130="Valid", K130, NA()) -> 11.8 | R130: 2 | S130: 11.8 | T130: -0.9 | U130: 7.6
A131: 2019 | B131: 6 | C131: 6 | D131: 9 | E131: 43622.375 | F131: 8.8 | G131: Valid | H131: 7.5 | I131: 13.3 | J131: Valid | K131: 11.8 | N131: 8.8 | O131: 7.5 | P131: 13.3 | Q131: 11.8 | R131: 13.3 | S131: 11.8 | T131: 8.8 | U131: 7.5
A132: =A131 -> 2019 | B132: 6 | C132: 6 | D132: =IF(D131=23,0,D131+1) -> 10 | E132: =E131+0.0416666666666666 -> 43622.41667 | F132: 14.9 | G132: Valid | H132: 7.9 | I132: 18.5 | J132: Valid | K132: 12 | N132: 14.9 | O132: 7.9 | P132: 18.5 | Q132: 12 | R132: 18.5 | S132: 12 | T132: 14.9 | U132: 7.9
A133: 2019 | B133: 6 | C133: 6 | D133: 11 | E133: 43622.45833 | F133: 6.3 | G133: Valid | H133: 7.7 | I133: 10.9 | J133: Valid | K133: 11.8 | N133: 6.3 | O133: 7.7 | P133: 10.9 | Q133: 11.8 | R133: 10.9 | S133: 11.8 | T133: 6.3 | U133: 7.7
A134: 2019 | B134: 6 | C134: 6 | D134: 12 | E134: 43622.5 | F134: 5.6 | G134: Valid | H134: 7.5 | I134: 8.5 | J134: Valid | K134: 11.5 | N134: 5.6 | O134: 7.5 | P134: 8.5 | Q134: 11.5 | R134: 8.5 | S134: 11.5 | T134: 5.6 | U134: 7.5
A135: 2019 | B135: 6 | C135: 6 | D135: 13 | E135: 43622.54167 | F135: 5.2 | G135: Valid | H135: 7.2 | I135: 7.6 | J135: Valid | K135: 11 | N135: 5.2 | O135: 7.2 | P135: 7.6 | Q135: 11 | R135: 7.6 | S135: 11 | T135: 5.2 | U135: 7.2
A136: 2019 | B136: 6 | C136: 6 | D136: 14 | E136: 43622.58333 | F136: =NA() ->  | G136: Invalid | H136: =NA() ->  | I136: -1.3 | J136: Valid | K136: 10.2 | L136: Calibration Error | M136: value outside range | P136: -1.3 | Q136: 10.2 | R136: -1.3 | S136: 10.2
A137: 2019 | B137: 6 | C137: 6 | D137: 15 | E137: 43622.625 | F137: -1.8 | G137: Valid | H137: 5.7 | I137: 2 | J137: Valid | K137: 9.6 | N137: -1.8 | O137: 5.7 | P137: 2 | Q137: 9.6 | R137: 2 | S137: 9.6 | T137: -1.8 | U137: 5.7
A138: 2019 | B138: 6 | C138: 6 | D138: 16 | E138: 43622.66667 | F138: 6.1 | G138: Valid | H138: 5.8 | I138: 10.5 | J138: Valid | K138: 9.4 | N138: 6.1 | O138: 5.8 | P138: 10.5 | Q138: 9.4 | R138: 10.5 | S138: 9.4 | T138: 6.1 | U138: 5.8
A139: 2019 | B139: 6 | C139: 6 | D139: 17 | E139: 43622.70833 | F139: 5.1 | G139: Valid | H139: 5.7 | I139: 9.9 | J139: Valid | K139: 9.3 | N139: 5.1 | O139: 5.7 | P139: 9.9 | Q139: 9.3 | R139: 9.9 | S139: 9.3 | T139: 5.1 | U139: 5.7
A140: 2019 | B140: 6 | C140: 6 | D140: 18 | E140: 43622.75 | F140: 4.6 | G140: Valid | H140: 5.6 | I140: 9.9 | J140: Valid | K140: 9.2 | N140: 4.6 | O140: 5.6 | P140: 9.9 | Q140: 9.2 | R140: 9.9 | S140: 9.2 | T140: 4.6 | U140: 5.6
A141: 2019 | B141: 6 | C141: 6 | D141: 19 | E141: 43622.79167 | F141: 3.4 | G141: Valid | H141: 5.5 | I141: 6.5 | J141: Valid | K141: 8.9 | N141: 3.4 | O141: 5.5 | P141: 6.5 | Q141: 8.9 | R141: 6.5 | S141: 8.9 | T141: 3.4 | U141: 5.5
A142: 2019 | B142: 6 | C142: 6 | D142: 20 | E142: 43622.83333 | F142: 4 | G142: Valid | H142: 5.3 | I142: 6.4 | J142: Valid | K142: 8.6 | N142: 4 | O142: 5.3 | P142: 6.4 | Q142: 8.6 | R142: 6.4 | S142: 8.6 | T142: 4 | U142: 5.3
A143: 2019 | B143: 6 | C143: 6 | D143: 21 | E143: 43622.875 | F143: 6.2 | G143: Valid | H143: 5 | I143: 7.5 | J143: Valid | K143: 8.3 | N143: 6.2 | O143: 5 | P143: 7.5 | Q143: 8.3 | R143: 7.5 | S143: 8.3 | T143: 6.2 | U143: 5
A144: 2019 | B144: 6 | C144: 6 | D144: 22 | E144: 43622.91667 | F144: 9.9 | G144: Valid | H144: 4.9 | I144: 10.7 | J144: Valid | K144: 8.1 | N144: 9.9 | O144: 4.9 | P144: 10.7 | Q144: 8.1 | R144: 10.7 | S144: 8.1 | T144: 9.9 | U144: 4.9
A145: 2019 | B145: 6 | C145: 6 | D145: 23 | E145: 43622.95833 | F145: 6.7 | G145: Valid | H145: 4.9 | I145: 7.7 | J145: Valid | K145: 7.9 | N145: 6.7 | O145: 4.9 | P145: 7.7 | Q145: 7.9 | R145: 7.7 | S145: 7.9 | T145: 6.7 | U145: 4.9
A146: 2019 | B146: 6 | C146: 7 | D146: 0 | E146: 43623 | F146: 2.4 | G146: Valid | H146: 4.8 | I146: 4 | J146: Valid | K146: 7.9 | N146: 2.4 | O146: 4.8 | P146: 4 | Q146: 7.9 | R146: 4 | S146: 7.9 | T146: 2.4 | U146: 4.8
A147: 2019 | B147: 6 | C147: 7 | D147: 1 | E147: 43623.04167 | F147: 6.4 | G147: Valid | H147: 4.8 | I147: 8.2 | J147: Valid | K147: 7.8 | N147: 6.4 | O147: 4.8 | P147: 8.2 | Q147: 7.8 | R147: 8.2 | S147: 7.8 | T147: 6.4 | U147: 4.8
A148: 2019 | B148: 6 | C148: 7 | D148: 2 | E148: 43623.08333 | F148: 3.8 | G148: Valid | H148: 4.4 | I148: 5.5 | J148: Valid | K148: 7.4 | N148: 3.8 | O148: 4.4 | P148: 5.5 | Q148: 7.4 | R148: 5.5 | S148: 7.4 | T148: 3.8 | U148: 4.4
A149: 2019 | B149: 6 | C149: 7 | D149: 3 | E149: 43623.125 | F149: =NA() ->  | G149: Invalid | H149: =NA() ->  | I149: =NA() ->  | J149: Invalid | K149: =NA() ->  | L149: Calibration Error | M149: value outside range
A150: 2019 | B150: 6 | C150: 7 | D150: 4 | E150: 43623.16667 | F150: =NA() ->  | G150: Invalid | H150: =NA() ->  | I150: =NA() ->  | J150: Invalid | K150: =NA() ->  | L150: Calibration Error | M150: value outside range
A151: 2019 | B151: 6 | C151: 7 | D151: 5 | E151: 43623.20833 | F151: =NA() ->  | G151: Invalid | H151: =NA() ->  | I151: =NA() ->  | J151: Invalid | K151: =NA() ->  | L151: Calibration Error | M151: value outside range
A152: 2019 | B152: 6 | C152: 7 | D152: 6 | E152: 43623.25 | F152: =NA() ->  | G152: Invalid | H152: =NA() ->  | I152: =NA() ->  | J152: Invalid | K152: =NA() ->  | L152: Calibration Error | M152: value outside range
A153: 2019 | B153: 6 | C153: 7 | D153: 7 | E153: 43623.29167 | F153: =NA() ->  | G153: Invalid | H153: =NA() ->  | I153: =NA() ->  | J153: Invalid | K153: =NA() ->  | L153: Calibration Error | M153: value outside range
A154: 2019 | B154: 6 | C154: 7 | D154: 8 | E154: 43623.33333 | F154: =NA() ->  | G154: Invalid | H154: =NA() ->  | I154: =NA() ->  | J154: Invalid | K154: =NA() ->  | L154: Calibration Error | M154: value outside range
A155: 2019 | B155: =B154 -> 6 | C155: =C131+1 -> 7 | D155: 9 | E155: 43623.375 | F155: =NA() ->  | G155: Invalid | H155: =NA() ->  | I155: =NA() ->  | J155: Invalid | K155: =NA() ->  | L155: Calibration Error | M155: value outside range
A156: 2019 | B156: 6 | C156: 7 | D156: 10 | E156: 43623.41667 | F156: =NA() ->  | G156: Invalid | H156: =NA() ->  | I156: =NA() ->  | J156: Invalid | K156: =NA() ->  | L156: Calibration Error | M156: value outside range
A157: 2019 | B157: 6 | C157: 7 | D157: 11 | E157: 43623.45833 | F157: =NA() ->  | G157: Invalid | H157: =NA() ->  | I157: =NA() ->  | J157: Invalid | K157: =NA() ->  | L157: Calibration Error | M157: value outside range
A158: 2019 | B158: 6 | C158: 7 | D158: 12 | E158: 43623.5 | F158: =NA() ->  | G158: Invalid | H158: =NA() ->  | I158: =NA() ->  | J158: Invalid | K158: =NA() ->  | L158: Calibration Error | M158: value outside range
A159: 2019 | B159: 6 | C159: 7 | D159: 13 | E159: 43623.54167 | F159: =NA() ->  | G159: Invalid | H159: =NA() ->  | I159: =NA() ->  | J159: Invalid | K159: =NA() ->  | L159: Calibration Error | M159: value outside range
A160: 2019 | B160: 6 | C160: 7 | D160: 14 | E160: 43623.58333 | F160: =NA() ->  | G160: Invalid | H160: =NA() ->  | I160: =NA() ->  | J160: Invalid | K160: =NA() ->  | L160: Calibration Error | M160: value outside range
A161: 2019 | B161: 6 | C161: 7 | D161: 15 | E161: 43623.625 | F161: =NA() ->  | G161: Invalid | H161: =NA() ->  | I161: =NA() ->  | J161: Invalid | K161: =NA() ->  | L161: Calibration Error | M161: value outside range
A162: 2019 | B162: 6 | C162: 7 | D162: 16 | E162: 43623.66667 | F162: =NA() ->  | G162: Invalid | H162: =NA() ->  | I162: =NA() ->  | J162: Invalid | K162: =NA() ->  | L162: Calibration Error | M162: value outside range
A163: 2019 | B163: 6 | C163: 7 | D163: 17 | E163: 43623.70833 | F163: =NA() ->  | G163: Invalid | H163: =NA() ->  | I163: =NA() ->  | J163: Invalid | K163: =NA() ->  | L163: Calibration Error | M163: value outside range
A164: 2019 | B164: 6 | C164: 7 | D164: 18 | E164: 43623.75 | F164: =NA() ->  | G164: Invalid | H164: =NA() ->  | I164: =NA() ->  | J164: Invalid | K164: =NA() ->  | L164: Calibration Error | M164: value outside range
A165: 2019 | B165: 6 | C165: 7 | D165: 19 | E165: 43623.79167 | F165: =NA() ->  | G165: Invalid | H165: =NA() ->  | I165: =NA() ->  | J165: Invalid | K165: =NA() ->  | L165: Calibration Error | M165: value outside range
A166: 2019 | B166: 6 | C166: 7 | D166: 20 | E166: 43623.83333 | F166: =NA() ->  | G166: Invalid | H166: =NA() ->  | I166: =NA() ->  | J166: Invalid | K166: =NA() ->  | L166: Calibration Error | M166: value outside range
A167: 2019 | B167: 6 | C167: 7 | D167: 21 | E167: 43623.875 | F167: =NA() ->  | G167: Invalid | H167: =NA() ->  | I167: =NA() ->  | J167: Invalid | K167: =NA() ->  | L167: Calibration Error | M167: value outside range
A168: 2019 | B168: 6 | C168: 7 | D168: 22 | E168: 43623.91667 | F168: =NA() ->  | G168: Invalid | H168: =NA() ->  | I168: =NA() ->  | J168: Invalid | K168: =NA() ->  | L168: Calibration Error | M168: value outside range
A169: 2019 | B169: 6 | C169: 7 | D169: 23 | E169: 43623.95833 | F169: =NA() ->  | G169: Invalid | H169: =NA() ->  | I169: =NA() ->  | J169: Invalid | K169: =NA() ->  | L169: Calibration Error | M169: value outside range
A170: 2019 | B170: 6 | C170: 8 | D170: 0 | E170: 43624 | F170: =NA() ->  | G170: Invalid | H170: =NA() ->  | I170: =NA() ->  | J170: Invalid | K170: =NA() ->  | L170: Calibration Error | M170: value outside range
A171: 2019 | B171: 6 | C171: 8 | D171: 1 | E171: 43624.04167 | F171: =NA() ->  | G171: Invalid | H171: =NA() ->  | I171: =NA() ->  | J171: Invalid | K171: =NA() ->  | L171: Calibration Error | M171: value outside range
A172: 2019 | B172: 6 | C172: 8 | D172: 2 | E172: 43624.08333 | F172: =NA() ->  | G172: Invalid | H172: =NA() ->  | I172: =NA() ->  | J172: Invalid | K172: =NA() ->  | L172: Calibration Error | M172: value outside range
A173: 2019 | B173: 6 | C173: 8 | D173: 3 | E173: 43624.125 | F173: =NA() ->  | G173: Invalid | H173: =NA() ->  | I173: =NA() ->  | J173: Invalid | K173: =NA() ->  | L173: Calibration Error | M173: value outside range
A174: 2019 | B174: 6 | C174: 8 | D174: 4 | E174: 43624.16667 | F174: =NA() ->  | G174: Invalid | H174: =NA() ->  | I174: =NA() ->  | J174: Invalid | K174: =NA() ->  | L174: Calibration Error | M174: value outside range
A175: 2019 | B175: 6 | C175: 8 | D175: 5 | E175: 43624.20833 | F175: =NA() ->  | G175: Invalid | H175: =NA() ->  | I175: =NA() ->  | J175: Invalid | K175: =NA() ->  | L175: Calibration Error | M175: value outside range
A176: 2019 | B176: 6 | C176: 8 | D176: 6 | E176: 43624.25 | F176: =NA() ->  | G176: Invalid | H176: =NA() ->  | I176: =NA() ->  | J176: Invalid | K176: =NA() ->  | L176: Calibration Error | M176: value outside range
A177: 2019 | B177: 6 | C177: 8 | D177: 7 | E177: 43624.29167 | F177: =NA() ->  | G177: Invalid | H177: =NA() ->  | I177: =NA() ->  | J177: Invalid | K177: =NA() ->  | L177: Calibration Error | M177: value outside range
A178: 2019 | B178: 6 | C178: 8 | D178: 8 | E178: 43624.33333 | F178: =NA() ->  | G178: Invalid | H178: =NA() ->  | I178: =NA() ->  | J178: Invalid | K178: =NA() ->  | L178: Calibration Error | M178: value outside range
A179: 2019 | B179: 6 | C179: 8 | D179: 9 | E179: 43624.375 | F179: =NA() ->  | G179: Invalid | H179: =NA() ->  | I179: =NA() ->  | J179: Invalid | K179: =NA() ->  | L179: Calibration Error | M179: value outside range
A180: 2019 | B180: 6 | C180: 8 | D180: 10 | E180: 43624.41667 | F180: =NA() ->  | G180: Invalid | H180: =NA() ->  | I180: =NA() ->  | J180: Invalid | K180: =NA() ->  | L180: Calibration Error | M180: value outside range
A181: 2019 | B181: 6 | C181: 8 | D181: 11 | E181: 43624.45833 | F181: =NA() ->  | G181: Invalid | H181: =NA() ->  | I181: =NA() ->  | J181: Invalid | K181: =NA() ->  | L181: Calibration Error | M181: value outside range
A182: 2019 | B182: 6 | C182: 8 | D182: 12 | E182: 43624.5 | F182: =NA() ->  | G182: Invalid | H182: =NA() ->  | I182: =NA() ->  | J182: Invalid | K182: =NA() ->  | L182: Calibration Error | M182: value outside range
A183: 2019 | B183: 6 | C183: 8 | D183: 13 | E183: 43624.54167 | F183: =NA() ->  | G183: Invalid | H183: =NA() ->  | I183: =NA() ->  | J183: Invalid | K183: =NA() ->  | L183: Calibration Error | M183: value outside range
A184: 2019 | B184: 6 | C184: 8 | D184: 14 | E184: 43624.58333 | F184: =NA() ->  | G184: Invalid | H184: =NA() ->  | I184: =NA() ->  | J184: Invalid | K184: =NA() ->  | L184: Calibration Error | M184: value outside range
A185: 2019 | B185: 6 | C185: 8 | D185: 15 | E185: 43624.625 | F185: =NA() ->  | G185: Invalid | H185: =NA() ->  | I185: =NA() ->  | J185: Invalid | K185: =NA() ->  | L185: Calibration Error | M185: value outside range
A186: 2019 | B186: 6 | C186: 8 | D186: 16 | E186: 43624.66667 | F186: =NA() ->  | G186: Invalid | H186: =NA() ->  | I186: =NA() ->  | J186: Invalid | K186: =NA() ->  | L186: Calibration Error | M186: value outside range
A187: 2019 | B187: 6 | C187: 8 | D187: 17 | E187: 43624.70833 | F187: =NA() ->  | G187: Invalid | H187: =NA() ->  | I187: =NA() ->  | J187: Invalid | K187: =NA() ->  | L187: Calibration Error | M187: value outside range
A188: 2019 | B188: 6 | C188: 8 | D188: 18 | E188: 43624.75 | F188: =NA() ->  | G188: Invalid | H188: =NA() ->  | I188: =NA() ->  | J188: Invalid | K188: =NA() ->  | L188: Calibration Error | M188: value outside range
A189: 2019 | B189: 6 | C189: 8 | D189: 19 | E189: 43624.79167 | F189: =NA() ->  | G189: Invalid | H189: =NA() ->  | I189: =NA() ->  | J189: Invalid | L189: Calibration Error | M189: value outside range
A190: 2019 | B190: 6 | C190: 8 | D190: 20 | E190: 43624.83333 | F190: =NA() ->  | G190: Invalid | H190: =NA() ->  | J190: Invalid | L190: Calibration Error | M190: value outside range
A191: 2019 | B191: 6 | C191: 8 | D191: 21 | E191: 43624.875 | F191: =NA() ->  | G191: Invalid | H191: =NA() ->  | J191: Invalid | L191: Calibration Error | M191: value outside range
A192: 2019 | B192: 6 | C192: 8 | D192: 22 | E192: 43624.91667 | F192: =NA() ->  | G192: Invalid | H192: =NA() ->  | J192: Invalid | L192: Calibration Error | M192: value outside range
A193: 2019 | B193: 6 | C193: 8 | D193: 23 | E193: 43624.95833 | F193: =NA() ->  | G193: Invalid | H193: =NA() ->  | J193: Invalid | L193: Calibration Error | M193: value outside range
A194: 2019 | B194: 6 | C194: 9 | D194: 0 | E194: 43625 | F194: =NA() ->  | G194: Invalid | H194: =NA() ->  | J194: Invalid | L194: Calibration Error | M194: value outside range | N194: =IF(G194="Valid", F194, NA()) ->  | O194: =IF(G194="Valid", H194, NA()) ->  | P194: =IF(J194="Valid", I194, NA()) ->  | Q194: =IF(J194="Valid", K194, NA()) -> 
A195: 2019 | B195: 6 | C195: 9 | D195: 1 | E195: 43625.04167 | F195: =NA() ->  | G195: Invalid | H195: =NA() ->  | J195: Invalid | L195: Calibration Error | M195: value outside range
A196: =A195 -> 2019 | B196: 6 | C196: 9 | D196: =IF(D195=23,0,D195+1) -> 2 | E196: =E195+0.0416666666666666 -> 43625.08333 | F196: =NA() ->  | G196: Invalid | H196: =NA() ->  | J196: Invalid | L196: Calibration Error | M196: value outside range
A197: 2019 | B197: 6 | C197: 9 | D197: 3 | E197: 43625.125 | F197: =NA() ->  | G197: Invalid | H197: =NA() ->  | J197: Invalid | L197: Calibration Error | M197: value outside range
A198: 2019 | B198: 6 | C198: 9 | D198: 4 | E198: 43625.16667 | F198: =NA() ->  | G198: Invalid | H198: =NA() ->  | J198: Invalid | L198: Calibration Error | M198: value outside range
A199: 2019 | B199: 6 | C199: 9 | D199: 5 | E199: 43625.20833 | F199: =NA() ->  | G199: Invalid | H199: =NA() ->  | J199: Invalid | L199: Calibration Error | M199: value outside range
A200: 2019 | B200: 6 | C200: 9 | D200: 6 | E200: 43625.25 | F200: =NA() ->  | G200: Invalid | H200: =NA() ->  | J200: Invalid | L200: Calibration Error | M200: value outside range
... 545 more rows

Sheet Raw data_format
A1: Parameter | B1: Format | C1: Comment | D1: Units of measure | E1: Minimum | F1: Maximum
A2: Year | B2: yyyy | C2: 4 integer format | D2: Not applicable | E2: 2015 | F2: Until reporting ceases
A3: Month | B3: mm | C3: 2 integer format | D3: Not applicable | E3: 1 | F3: 12
A4: Day | B4: dd | C4: 2 integer format | D4: Not applicable | E4: 1 | F4: 31
A5: Hour | B5: hh | C5: 2 integer format | D5: Not applicable | E5: 0 | F5: 23
A6: PM10 | B6: 0 | C6: 1 decimal place resolution | D6: µg/m3 | E6: Negative | F6: Instrument specific
A7: PM2.5 | B7: 0 | C7: 2 decimal place resolution | D7: µg/m3 | E7: Negative | F7: Instrument specific
A8: Status | B8: Text | C8: 7 character format | D8: Not applicable | E8: Valid | F8: Invalid
